[Event "Klatovy Open-A 2024"]
[Site "Klatovy"]
[Date "2024.07.04"]
[Round "6.1"]
[White "Straka, Vojtech"]
[Black "Velickov, Dominik"]
[Result "1-0"]
[ECO "E18"]
[WhiteElo "2436"]
[BlackElo "1885"]
[Annotator "TA"]
[PlyCount "81"]
[EventDate "2024.06.21"]
[EventType "swiss"]
[EventCountry "CZE"]
[SourceTitle "playchess.com"]
[Source "ChessBase"]
[SourceQuality "1"]
[TimeControl "40/7200:0"]

{[%evp 16,80,20,10,22,28,39,27,146,32,25,22,45,22,89,76,133,71,61,72,77,70,64,74,70,68,71,68,73,71,100,103,95,95,204,185,191,205,203,200,206,200,361,366,369,365,447,444,704,684,6287,5503,29983,29984,29994,29995,29995,29996,29996,29996,29996,29997,29998,29999,29999,29999,29999]} 1. d4 {[%emt 0:00:00]} Nf6 {[%emt 0:00:00]} 2. c4 {[%emt 0:00:00]} e6 {[%emt 0:00:00]} 3. Nf3 {[%emt 0:00:00]} b6 {[%emt 0:02:00]} 4. g3 {[%emt 0:02:14]} Bb7 {[%emt 0:00:16]} 5. Bg2 {[%emt 0:00:00]} Be7 {[%emt 0:02:56]} 6. O-O {[%emt 0:00:00]} O-O {[%emt 0:00:00]} 7. Nc3 {[%emt 0:04:51]} d5 {[%emt 0:01:12]} 8. cxd5 {[%emt 0:03:10]} Nxd5 {[%emt 0:02:38]} 9. Qc2 {[%emt 0:03:54]} c5 {[%emt 0:26:47]} 10. dxc5 {[%emt 0:11:33]} Nxc3 {[%emt 0:03:59]} 11. bxc3 {[%emt 0:01:03][%cal Of3g5] Strongly threatening Ng5!} Nd7 {[%emt 0:02:33]} (11... Qc8 $11) 12. Rd1 {[%emt 0:05:17]} ({White should try} 12. Ng5 $16 Bxg5 13. Bxb7) 12... Qc8 $1 $14 {[%emt 0:02:03]} 13. cxb6 {[%emt 0:06:15]} Nxb6 {[%emt 0:04:18]} 14. Rb1 {[%emt 0:09:51]} Rd8 {[%emt 0:15:37]} (14... Bc6 $11 {remains equal.}) 15. Rxd8+ $16 {[%emt 0:06:03]} Qxd8 {[%emt 0:00:34] [#]} ({Better is} 15... Bxd8 16. Be3 Bd5) 16. Be3 {[%emt 0:01:52]} ({White should play} 16. Ng5 $1 Bxg5 17. Bxb7) 16... Rc8 {[%emt 0:02:07] [#]} 17. Ng5 $1 $40 {[%emt 0:18:06][%mdl 128] White attacks with force.} Bxg5 {[%emt 0:00:37]} 18. Bxb7 {[%emt 0:00:00]} Rc7 {[%emt 0:04:04]} 19. Bxg5 {[%emt 0:10:19]} Qxg5 {[%emt 0:01:03]} 20. Be4 {[%emt 0:00:00]} g6 {[%emt 0:03:30]} 21. Bd3 {[%emt 0:01:25]} Qe5 {[%emt 0:11:42] Black is on the road to losing.} 22. c4 {[%emt 0:01:21][%cal Bc3c4,Bc4c5][%mdl 32]} Rc5 {[%emt 0:01:34]} 23. Rb5 {[%emt 0:02:11][%cal Bb1b5,Bb5a5,Ba5a7,Ba7d7][%mdl 32]} Qc7 {[%emt 0:00:08]} 24. Qb2 {[%emt 0:05:59]} e5 {[%emt 0:01:13] [#]} (24... Rc6 $16 {was worth a try.} 25. h4 h5) 25. Qb4 $1 $18 {[%emt 0:01:39]} Rc6 {[%emt 0:08:48][%cal Oa7a6]} 26. c5 {[%emt 0:00:24]} Nd5 {[%emt 0:00:29][%cal Bb6d5,Bd5f6,Bf6d5][%mdl 32]} 27. Qa3 {[%emt 0:00:58]} Nf6 {[%emt 0:05:54] Prevents Be4} 28. Ra5 {[%emt 0:01:07]} e4 $2 {[%emt 0:00:00]} (28... Qe7 29. Rxa7 Qxc5 30. Qxc5 Rxc5) 29. Rxa7 {[%emt 0:00:00]} Qe5 {[%emt 0:00:00] [#]} 30. Qb3 {[%emt 0:03:20]} Nd5 {[%emt 0:01:15]} (30... Qd5 31. Bc4) 31. Bc4 {[%emt 0:00:46]} Rxc5 {[%emt 0:00:00]} (31... Nc7 $142 32. Bxf7+ Kg7) 32. Rd7 {[%emt 0:00:23][%cal Rc4d5]} Qa1+ {[%emt 0:06:18]} 33. Kg2 {[%emt 0:00:00]} e3 {[%emt 0:00:17][%cal Be4e3,Be3f2][%mdl 32]} 34. Bxd5 {[%emt 0:00:35] White mates.} exf2 {[%emt 0:00:00]} 35. Qb8+ {[%emt 0:00:00]} Kg7 {[%emt 0:00:00]} 36. Rxf7+ {[%emt 0:00:00]} ({And not} 36. Kxf2 Qd4+ 37. Kf1 Rxd5 38. Rxd5 Qxd5 $11) 36... Kh6 {[%emt 0:00:00]} 37. Qf4+ {[%emt 0:00:00]} g5 {[%emt 0:00:00]} 38. Qd6+ {[%emt 0:00:00]} Kh5 {[%emt 0:00:00]} 39. Rxh7+ {[%emt 0:00:00]} Kg4 {[%emt 0:00:00]} 40. Be6+ {[%emt 0:00:00]} Rf5 {[%emt 0:00:00]} 41. h3# {[%emt 2:15:24] Weighted Error Value: White=0.06 (flawless) /Black=0.49.  Mistake:       	White=2     	Black=6      Inaccurate:     	---       	Black=2      OK:         	White=15    	Black=8      Best:        	White=2     	Black=1      Strong:       	White=1     	Black=1} 1-0

[Event "Klatovy Open-A 2024"]
[Site "Klatovy"]
[Date "2024.07.04"]
[Round "6.6"]
[White "Lhotsky, Zdenek"]
[Black "Slovak, Kilian"]
[Result "0-1"]
[ECO "B56"]
[WhiteElo "1918"]
[BlackElo "2271"]
[Annotator "TA"]
[PlyCount "46"]
[EventDate "2024.06.21"]
[EventType "swiss"]
[EventCountry "CZE"]
[SourceTitle "playchess.com"]
[Source "ChessBase"]
[SourceQuality "1"]
[TimeControl "40/7200:0"]

{[%evp 14,46,13,0,-7,-16,-19,-70,-68,-65,-61,-67,-62,-68,-81,-85,-23,-83,-83,-56,-32,-155,-154,-145,-139,-155,-148,-212,-202,-247,-245,-238,-238,-343,-329]} 1. e4 {[%emt 0:00:00]} c5 {[%emt 2:00:00]} 2. Nf3 {[%emt 0:00:00]} Nc6 3. d4 {[%emt 2:00:00]} cxd4 {[%emt 0:00:00]} 4. Nxd4 {[%emt 0:00:00]} Nf6 {[%emt 0:00:00]} 5. Nc3 {[%emt 0:00:00]} d6 {[%emt 0:00:00]} 6. Be3 {[%emt 0:00:00]} Ng4 {[%emt 0:00:00]} 7. Bg5 {[%emt 0:00:00][%cal Be3g5,Bg5h4,Bh4g3][%mdl 32]} h6 {[%emt 0:00:00]} 8. Bh4 {[%emt 0:00:00]} g5 {[%emt 0:00:00]} 9. Bg3 {[%emt 0:00:00]} Bg7 {[%emt 0:00:00]} 10. Nf5 {[%emt 0:00:00]} (10. Nb3 $11) 10... Bxf5 $15 {[%emt 0:00:00] Black is slightly better.} 11. exf5 {[%emt 0:00:00] [#]} Qa5 $1 {[%emt 0:00:00]} 12. Qd3 {[%emt 0:00:00]} Nd4 {[%emt 0:00:00] Black has more active pieces.} 13. Be2 {[%emt 0:00:00]} ({Don't play} 13. h3 Ne5 14. Bxe5 (14. Qxd4 $2 Nf3+ 15. gxf3 Bxd4 $19) 14... Qxe5+ 15. Ne2 Nxf5 $17) 13... Nxe2 {[%emt 0:00:00]} (13... Qxf5 $2 {too greedy.} 14. Qxf5 Nxf5 15. Bxg4 $18) 14. Kxe2 {[%emt 0:00:00]} Ne5 {[%emt 0:00:00]} (14... Rc8 $17 {[%cal Rg7c3]} 15. Nd1 h5) 15. Qb5+ {[%emt 0:00:00]} (15. Bxe5 $11 {remains equal.} Qxe5+ 16. Kf1) 15... Qxb5+ $17 {[%emt 0:00:00]} 16. Nxb5 {[%emt 0:00:00] [#] Hoping for Bxe5.} Kd7 {[%emt 0:00:00]} 17. b3 {[%emt 0:00:00] Prevents Nc4} ({Better is} 17. Bxe5 $1 $15 Bxe5 18. c3) 17... a6 {[%emt 0:00:00]} 18. Na3 {[%emt 0:00:00]} Nc6 {[%emt 0:00:00]} 19. Rad1 {[%emt 0:00:00]} Nd4+ {[%emt 0:00:00]} 20. Ke3 {[%emt 0:00:00]} (20. Kd3 $17) 20... Nxf5+ $19 {[%emt 0:00:00]} 21. Kf3 {[%emt 0:00:00]} Nd4+ {[%emt 0:00:00]} 22. Ke3 {[%emt 0:00:00]} f5 {[%emt 0:00:00]} 23. f4 {[%emt 0:00:00]} (23. Rxd4 $142 Bxd4+ (23... f4+ $2 24. Rxf4 gxf4+ 25. Bxf4 $19) 24. Kxd4) 23... gxf4+ {[%emt 0:00:00] Weighted Error Value: White=0.37/Black=0.09 (flawless) .  Mistake:       	White=5     	Black=1      OK:         	White=2     	Black=7      Best:        	White=1     	Black=3} 0-1